[Event "Moscow Open RSSU Cup 2020"]
[Site "Moscow"]
[Date "2020.01.25"]
[Round "1.12"]
[White "Yeremyan, Alen"]
[Black "Kunin, Vitaly"]
[Result "1/2-1/2"]
[ECO "A46"]
[WhiteElo "2221"]
[BlackElo "2533"]
[Annotator "ChessBase"]
[PlyCount "124"]
[EventDate "2020.01.25"]
[EventType "swiss"]
[EventCountry "RUS"]
[SourceTitle "playchess.com"]
[Source "ChessBase"]
[SourceQuality "1"]
[TimeControl "40/5400+30:1800+30"]

1. d4 {[%emt 0:00:00]} d6 {[%emt 0:19:44]} 2. Nf3 {[%emt 0:00:00]} Bg4 {[%emt 0:00:08]} 3. Nbd2 {[%emt 0:02:02]} Nf6 {[%emt 0:00:34]} 4. g3 {[%emt 0:00:56]} c6 {[%emt 0:02:19]} 5. Bg2 {[%emt 0:00:07]} Nbd7 {[%emt 0:00:18]} 6. O-O {[%emt 0:00:15]} e5 {[%emt 0:00:06]} 7. c3 {[%emt 0:03:12]} Be7 {[%emt 0:00:13]} 8. Qc2 {[%emt 0:01:28]} O-O {[%emt 0:00:26]} 9. e4 {[%emt 0:02:16]} Re8 {[%emt 0:02:29]} 10. dxe5 {[%emt 0:01:25]} dxe5 {[%emt 0:04:30]} 11. a4 {[%emt 0:04:36]} Qc7 {[%emt 0:00:52]} 12. h3 {[%emt 0:00:44]} Be6 {[%emt 0:03:40]} 13. Ng5 {[%emt 0:01:46]} Nf8 {[%emt 0:00:09]} 14. Nxe6 {[%emt 1:18:13]} Nxe6 {[%emt 0:00:08]} 15. Nc4 {[%emt 0:00:00]} b5 {[%emt 0:05:18]} 16. axb5 {[%emt 0:00:00]} cxb5 {[%emt 0:00:42]} 17. Ne3 {[%emt 0:00:00]} Rab8 {[%emt 0:00:58]} 18. Nd5 {[%emt 0:00:00]} Nxd5 {[%emt 0:00:14]} 19. exd5 {[%emt 0:00:00]} Nc5 {[%emt 0:01:04]} 20. Be3 {[%emt 0:00:00]} Rec8 {[%emt 0:05:06]} 21. Rfc1 {[%emt 0:00:00]} a5 {[%emt 0:04:42]} 22. b3 {[%emt 0:00:00]} Bd6 {[%emt 0:02:09]} 23. Qd1 {[%emt 0:00:00]} Qd8 {[%emt 0:04:26]} 24. b4 {[%emt 0:00:00]} axb4 {[%emt 0:09:32]} 25. cxb4 {[%emt 0:00:00]} Na4 {[%emt 0:00:03]} 26. Qg4 {[%emt 0:00:00]} Qf8 {[%emt 0:03:28]} 27. Rxc8 {[%emt 0:00:00]} Rxc8 {[%emt 0:05:02]} 28. Qd7 {[%emt 0:00:00]} Nc3 {[%emt 0:02:54]} 29. Bb6 {[%emt 0:00:00]} e4 {[%emt 0:01:34]} 30. Qb7 {[%emt 0:00:00]} Rb8 {[%emt 0:01:37]} 31. Qc6 {[%emt 0:00:00]} Rc8 {[%emt 0:00:09]} 32. Qb7 {[%emt 0:00:00]} Bxb4 {[%emt 0:06:21]} 33. Bc7 {[%emt 0:00:00]} Re8 {[%emt 0:03:19]} 34. Kh2 {[%emt 0:00:00]} h5 {[%emt 0:10:32]} 35. Qc6 {[%emt 0:00:00]} Kh7 {[%emt 0:00:02]} 36. d6 {[%emt 0:00:00]} Re6 {[%emt 0:00:01]} 37. Ra8 {[%emt 0:00:00]} Bxd6 {[%emt 0:03:10]} 38. Rxf8 {[%emt 0:00:00]} Bxg3+ {[%emt 0:00:02]} 39. Bxg3 {[%emt 0:00:01]} Rxc6 {[%emt 0:00:01]} 40. Rxf7 {[%emt 0:00:17]} Re6 {[%emt 0:00:16]} 41. Rc7 {[%emt 0:31:35]} Ne2 {[%emt 0:30:39]} 42. Bh4 {[%emt 0:02:49]} Nf4 {[%emt 0:00:17]} 43. Bf1 {[%emt 0:01:43]} e3 {[%emt 0:01:06]} 44. fxe3 {[%emt 0:00:47]} Rxe3 {[%emt 0:00:02]} 45. Rf7 {[%emt 0:01:02]} Rf3 {[%emt 0:01:12]} 46. Bg2 {[%emt 0:02:33]} Nxg2 {[%emt 0:00:17]} 47. Rxf3 {[%emt 0:00:04]} Nxh4 {[%emt 0:00:07]} 48. Rf4 {[%emt 0:00:49]} g5 {[%emt 0:00:10]} 49. Rb4 {[%emt 0:00:16]} g4 {[%emt 0:00:43]} 50. hxg4 {[%emt 0:00:22]} hxg4 {[%emt 0:00:11]} 51. Rxb5 {[%emt 0:00:09]} Kg6 {[%emt 0:00:22]} 52. Kg3 {[%emt 0:00:14]} Nf5+ {[%emt 0:00:09]} 53. Kxg4 {[%emt 0:00:06]} Ne7 {[%emt 0:00:17]} 54. Rb6+ {[%emt 0:00:15]} Kf7 {[%emt 0:00:10]} 55. Ra6 {[%emt 0:00:22]} Ke8 {[%emt 0:00:21]} 56. Kf4 {[%emt 0:00:31]} Kf7 {[%emt 0:00:12]} 57. Ke5 {[%emt 0:00:32]} Ng6+ {[%emt 0:00:11]} 58. Kf5 {[%emt 0:00:07]} Ne7+ {[%emt 0:00:08]} 59. Kg5 {[%emt 0:00:13]} Nd5 {[%emt 0:00:17]} 60. Rd6 {[%emt 0:01:04]} Ne7 {[%emt 0:00:09]} 61. Rd7 {[%emt 0:01:14]} Ke6 {[%emt 0:00:13]} 62. Rxe7+ {[%emt 0:00:04]} Kxe7 {[%emt 0:00:36]} 1/2-1/2

[Event "Moscow Open RSSU Cup 2020"]
[Site "Moscow"]
[Date "2020.01.25"]
[Round "1.13"]
[White "Bodnaruk, Anastasia"]
[Black "Tokmakova, Ulyana"]
[Result "1-0"]
[ECO "C16"]
[WhiteElo "2411"]
[BlackElo "1895"]
[Annotator "NA"]
[PlyCount "83"]
[EventDate "2020.01.25"]
[EventType "swiss"]
[EventCountry "RUS"]
[SourceTitle "playchess.com"]
[Source "ChessBase"]
[SourceQuality "1"]
[TimeControl "40/5400+30:1800+30"]

1. e4 {[%emt 0:00:00]} e6 {[%emt 0:01:43]} 2. d4 {[%emt 1:31:00]} d5 3. Nc3 Bb4 4. e5 Ne7 5. a3 Bxc3+ 6. bxc3 b6 7. Qg4 Ng6 8. h4 h5 9. Qf3 Nxh4 10. Qd1 Ba6 11. Bxa6 Nxa6 12. g3 Ng6 13. Rxh5 Rxh5 14. Qxh5 Qd7 15. a4 O-O-O 16. Kf1 c5 17. Qh7 cxd4 18. cxd4 Qc7 19. Bg5 Qc4+ 20. Kg2 Rh8 21. Qxg7 Qxd4 22. Qxf7 Qxa1 23. Qxe6+ Kb8 24. Qxg6 Nc7 25. Qc6 Qd1 26. e6 Rf8 27. Be7 Rxf2+ 28. Kxf2 Qd4+ 29. Kf1 Qd1+ 30. Kg2 Qd2+ 31. Kh3 Qh6+ 32. Bh4 Nxe6 33. Qd6+ Kc8 34. Qxd5 Nc5 35. Nf3 Qg6 36. Qa8+ Kc7 37. Bd8+ Kd6 38. Qb8+ Kd5 39. Qe5+ Kc6 40. Qc7+ Kd5 41. c4+ Ke4 42. Qf4+ {[%emt 0:00:00]} 1-0

[Event "Moscow Open RSSU Cup 2020"]
[Site "Moscow"]
[Date "2020.01.25"]
[Round "1.15"]
[White "Gritsayeva, Oksana"]
[Black "Stepanyan, Eva"]
[Result "1-0"]
[ECO "D38"]
[WhiteElo "2383"]
[BlackElo "1881"]
[Annotator "NA RC"]
[PlyCount "85"]
[EventDate "2020.01.25"]
[EventType "swiss"]
[EventCountry "RUS"]
[SourceTitle "playchess.com"]
[Source "ChessBase"]
[SourceQuality "1"]
[TimeControl "40/5400+30:1800+30"]

1. d4 {[%emt 0:00:00]} Nf6 {[%emt 0:00:00]} 2. Nf3 {[%emt 0:00:00]} d5 {[%emt 0:00:00]} 3. c4 {[%emt 0:01:40]} e6 {[%emt 0:00:01]} 4. Nc3 {[%emt 0:00:05]} Bb4 {[%emt 0:00:07]} 5. Qa4+ {[%emt 0:02:05]} Nc6 {[%emt 0:00:12]} 6. Bg5 {[%emt 0:00:10]} O-O {[%emt 0:02:54]} 7. e3 {[%emt 0:00:49]} Bd7 {[%emt 0:16:08]} 8. Qc2 {[%emt 0:08:54]} h6 {[%emt 0:04:35]} 9. Bxf6 {[%emt 0:02:04]} Qxf6 {[%emt 0:00:07]} 10. a3 {[%emt 0:03:50]} Bxc3+ {[%emt 0:00:28]} 11. Qxc3 {[%emt 0:00:07]} Rfe8 {[%emt 0:05:21]} 12. Be2 {[%emt 0:14:31]} dxc4 {[%emt 0:03:33]} 13. Qxc4 {[%emt 0:00:38]} Rac8 {[%emt 0:01:46]} 14. O-O {[%emt 0:04:42]} e5 {[%emt 0:03:00]} 15. d5 {[%emt 0:06:41]} Ne7 {[%emt 0:02:34]} 16. Rfd1 {[%emt 0:00:46]} Nf5 {[%emt 0:03:56]} 17. Rac1 {[%emt 0:01:38]} c6 {[%emt 0:06:14]} 18. Qb4 {[%emt 0:03:37]} Rb8 {[%emt 0:10:29]} 19. Qa5 {[%emt 0:07:00]} Ne7 {[%emt 0:10:22]} 20. dxc6 {[%emt 0:09:56]} Nxc6 {[%emt 0:00:32]} 21. Qc7 {[%emt 0:00:59]} Bg4 {[%emt 0:04:10]} 22. h3 {[%emt 0:01:36]} Bh5 {[%emt 0:08:00]} 23. g4 {[%emt 0:07:07]} Bg6 {[%emt 0:02:06]} 24. Rd6 {[%emt 0:00:31]} Rbc8 {[%emt 0:02:50]} 25. Qxc8 {[%emt 0:01:14]} Rxc8 {[%emt 0:00:09]} 26. Rxf6 {[%emt 0:00:03]} gxf6 {[%emt 0:00:06]} 27. Nh4 {[%emt 0:02:59]} Rd8 {[%emt 0:02:01]} 28. Bb5 {[%emt 0:02:24]} Rd6 {[%emt 0:00:52]} 29. Bxc6 {[%emt 0:01:40]} Rxc6 {[%emt 0:00:56]} 30. Rxc6 {[%emt 0:00:55]} bxc6 {[%emt 0:00:04]} 31. f3 {[%emt 0:00:48]} Kf8 {[%emt 0:01:36]} 32. e4 {[%emt 0:00:51]} Ke7 {[%emt 0:00:37]} 33. Kf2 {[%emt 0:00:05]} Kd6 {[%emt 0:01:23]} 34. Ke3 {[%emt 0:00:10]} Kc5 {[%emt 0:00:20]} 35. Kd3 {[%emt 0:00:06]} Bh7 {[%emt 0:00:29]} 36. Kc3 {[%emt 0:00:11]} a5 {[%emt 0:00:41]} 37. a4 {[%emt 0:00:48]} Bg6 {[%emt 0:01:13]} 38. Ng2 {[%emt 0:00:22]} f5 {[%emt 0:00:05]} 39. exf5 {[%emt 0:01:05]} Bh7 {[%emt 0:00:05]} 40. Ne3 {[%emt 0:01:25]} f6 {[%emt 0:00:05]} 41. Nc4 {[%emt 0:30:25]} Bg8 {[%emt 0:30:04]} 42. Nxa5 {[%emt 0:00:16]} Bd5 {[%emt 0:00:11]} 43. b4+ {[%emt 0:00:11]} 1-0

[Event "Moscow Open RSSU Cup 2020"]
[Site "Moscow"]
[Date "2020.01.25"]
[Round "1.16"]
[White "Melnikova, Diana V"]
[Black "Guseva, Marina"]
[Result "0-1"]
[ECO "B53"]
[WhiteElo "1877"]
[BlackElo "2379"]
[Annotator "NA"]
[PlyCount "70"]
[EventDate "2020.01.25"]
[EventType "swiss"]
[EventCountry "RUS"]
[SourceTitle "playchess.com"]
[Source "ChessBase"]
[SourceQuality "1"]
[TimeControl "40/5400+30:1800+30"]

1. e4 {[%emt 0:00:00]} c5 {[%emt 0:00:00]} 2. Nf3 {[%emt 0:00:00]} d6 {[%emt 0:00:00]} 3. d4 {[%emt 0:00:16]} cxd4 {[%emt 0:00:00]} 4. Qxd4 {[%emt 0:00:49]} a6 {[%emt 0:00:00]} 5. h3 {[%emt 0:00:20]} Nc6 {[%emt 0:00:06]} 6. Qe3 {[%emt 0:01:05]} g6 {[%emt 0:00:18]} 7. Be2 {[%emt 0:01:56]} Bg7 {[%emt 0:00:05]} 8. O-O {[%emt 0:00:50]} Nf6 {[%emt 0:00:03]} 9. c4 {[%emt 0:01:01]} Nd7 {[%emt 0:02:12]} 10. Nc3 {[%emt 0:04:16]} Nc5 {[%emt 0:00:46]} 11. Rb1 {[%emt 0:06:32]} a5 {[%emt 0:02:51]} 12. b3 {[%emt 0:02:35]} O-O {[%emt 0:00:09]} 13. Bb2 {[%emt 0:03:02]} f5 {[%emt 0:01:48]} 14. Rfe1 {[%emt 0:30:13]} h6 {[%emt 0:25:46]} 15. Nh4 {[%emt 0:07:38]} Kh7 {[%emt 1:03:26]} 16. exf5 {[%emt 0:02:31]} g5 {[%emt 0:00:00]} 17. f6 {[%emt 0:20:50]} Rxf6 {[%emt 0:00:00]} 18. Bd3+ {[%emt 0:03:02]} Nxd3 {[%emt 0:00:00]} 19. Qxd3+ {[%emt 0:00:06]} Kg8 {[%emt 0:00:00]} 20. Nf3 {[%emt 0:03:46]} Rf7 {[%emt 0:00:00]} 21. a3 {[%emt 0:03:02]} Qf8 {[%emt 0:00:00]} 22. Ne4 {[%emt 0:01:29]} Bf5 {[%emt 0:03:30]} 23. Bxg7 {[%emt 0:02:14]} Qxg7 {[%emt 0:00:00]} 24. Qd5 {[%emt 0:01:11]} Kh8 {[%emt 0:00:00]} 25. Rbd1 {[%emt 0:00:53]} g4 {[%emt 0:00:00]} 26. hxg4 {[%emt 0:01:15]} Bxg4 {[%emt 0:00:00]} 27. Ned2 {[%emt 0:01:11]} Rg8 {[%emt 0:00:00]} 28. g3 {[%emt 0:00:53]} Rgf8 {[%emt 0:00:00]} 29. Re3 {[%emt 0:00:23]} Rf5 {[%emt 0:00:00]} 30. Qe4 {[%emt 0:01:03]} Ne5 {[%emt 0:00:00]} 31. Nxe5 {[%emt 0:00:31]} Rxe5 {[%emt 0:00:00]} 32. Qc2 {[%emt 0:00:28]} Rxe3 {[%emt 0:00:00]} 33. fxe3 {[%emt 0:00:14]} Bxd1 {[%emt 0:00:00]} 34. Qxd1 {[%emt 0:00:07]} Qxg3+ {[%emt 0:00:00]} 35. Kh1 {[%emt 0:00:10]} Rf2 {[%emt 0:00:00]} 0-1

[Event "Moscow Open RSSU Cup 2020"]
[Site "Moscow"]
[Date "2020.01.28"]
[Round "4.7"]
[White "Samusenko, Maksim"]
[Black "Petrosyan, Manuel"]
[Result "*"]
[ECO "A45"]
[WhiteElo "2452"]
[BlackElo "2590"]
[Annotator "RC"]
[PlyCount "80"]
[EventDate "2020.01.25"]
[EventType "swiss"]
[EventCountry "RUS"]
[SourceTitle "playchess.com"]
[Source "ChessBase"]
[SourceQuality "1"]
[TimeControl "40/5400+30:1800+30"]

1. d4 {[%emt 0:00:00]} Nf6 {[%emt 0:03:12]} 2. Bf4 {[%emt 0:00:22]} g6 {[%emt 1:27:48]} 3. Nc3 {[%emt 0:00:44]} d5 {[%emt 0:00:22]} 4. e3 {[%emt 0:01:04]} Bg7 {[%emt 0:00:08]} 5. h4 {[%emt 0:01:22]} h5 {[%emt 0:00:05]} 6. Nf3 {[%emt 0:01:21]} c6 {[%emt 0:01:42]} 7. Qd2 {[%emt 0:02:29]} O-O {[%emt 0:02:52]} 8. Ne5 {[%emt 0:06:24]} Nfd7 {[%emt 0:04:38]} 9. O-O-O {[%emt 0:08:01]} Nxe5 {[%emt 0:04:06]} 10. Bxe5 {[%emt 0:01:59]} Bh6 {[%emt 0:00:11]} 11. Bf4 {[%emt 0:05:20]} Bg7 {[%emt 0:06:04]} 12. Be2 {[%emt 0:05:15]} Nd7 {[%emt 0:06:39]} 13. e4 {[%emt 0:06:53]} b5 {[%emt 0:04:34]} 14. exd5 {[%emt 0:16:31]} b4 {[%emt 0:00:27]} 15. Nb1 {[%emt 0:00:26]} cxd5 {[%emt 0:03:08]} 16. Qxb4 {[%emt 0:00:26]} e5 {[%emt 0:03:16]} 17. dxe5 {[%emt 0:06:53]} Nxe5 {[%emt 0:00:43]} 18. Nc3 {[%emt 0:05:28]} Be6 {[%emt 0:01:19]} 19. Rhe1 {[%emt 0:07:54]} Rb8 {[%emt 0:18:22]} 20. Bb5 {[%emt 0:01:07]} Qxh4 {[%emt 0:01:04]} 21. g3 {[%emt 0:04:30]} Qg4 {[%emt 0:37:24]} 22. Qa4 {[%emt 0:03:11]} Rxb5 {[%emt 0:08:08]} 23. Qxb5 {[%emt 0:03:20]} Nf3 {[%emt 0:00:30]} 24. Nxd5 {[%emt 0:05:21]} Nxe1 {[%emt 0:02:07]} 25. Rxe1 {[%emt 0:00:05]} Qf3 {[%emt 0:28:13]} 26. Ne7+ {[%emt 0:03:22]} Kh7 {[%emt 0:00:09]} 27. Qd3 {[%emt 0:01:54]} Qxd3 {[%emt 0:01:30]} 28. cxd3 {[%emt 0:00:03]} Bf6 {[%emt 0:00:28]} 29. Bd6 {[%emt 0:00:39]} Rd8 {[%emt 0:03:21]} 30. Bc5 {[%emt 0:00:55]} Rd7 {[%emt 0:00:36]} 31. Nc6 {[%emt 0:00:32]} Rc7 {[%emt 0:00:10]} 32. d4 {[%emt 0:00:43]} Rxc6 {[%emt 0:00:13]} 33. Kd2 {[%emt 0:00:04]} Bxa2 {[%emt 0:01:48]} 34. Ra1 {[%emt 0:00:18]} Ra6 {[%emt 0:04:25]} 35. b3 {[%emt 0:00:35]} Ra5 {[%emt 0:00:41]} 36. b4 {[%emt 0:00:44]} Ra4 {[%emt 0:00:15]} 37. Kc3 {[%emt 0:01:27]} a6 {[%emt 0:00:27]} 38. g4 {[%emt 0:00:37]} Bb3 {[%emt 0:18:55]} 39. Rh1 {[%emt 0:00:27]} Bd5 {[%emt 0:00:08]} 40. Rh2 {[%emt 0:00:04]} h4 {[%emt 0:00:22]} *

[Event "Moscow Open RSSU Cup 2020"]
[Site "Moscow"]
[Date "2020.01.29"]
[Round "5.1"]
[White "Lintchevski, Daniil"]
[Black "Tsydypov, Zhamsaran"]
[Result "1/2-1/2"]
[ECO "B22"]
[WhiteElo "2536"]
[BlackElo "2553"]
[Annotator "ChessBase"]
[PlyCount "94"]
[EventDate "2020.01.25"]
[EventType "swiss"]
[EventCountry "RUS"]
[SourceTitle "playchess.com"]
[Source "ChessBase"]
[SourceQuality "1"]
[TimeControl "40/5400+30:1800+30"]

1. e4 {[%emt 0:00:00]} c5 {[%emt 0:00:28]} 2. c3 {[%emt 0:00:16]} d5 {[%emt 0:01:15]} 3. exd5 {[%emt 0:00:08]} Qxd5 {[%emt 0:00:09]} 4. d4 {[%emt 0:00:06]} Nc6 {[%emt 0:01:47]} 5. Nf3 {[%emt 0:00:09]} Nf6 {[%emt 0:01:11]} 6. Be2 {[%emt 0:03:39]} e6 {[%emt 0:00:48]} 7. Na3 {[%emt 0:02:28]} cxd4 {[%emt 0:01:18]} 8. Nb5 {[%emt 0:00:21]} Qd8 {[%emt 0:00:37]} 9. Nbxd4 {[%emt 0:00:36]} Bd7 {[%emt 0:00:51]} 10. O-O {[%emt 0:03:50]} a6 {[%emt 0:03:14]} 11. Nxc6 {[%emt 0:06:28]} Bxc6 {[%emt 0:00:08]} 12. Ne5 {[%emt 0:00:10]} Qxd1 {[%emt 0:03:07]} 13. Rxd1 {[%emt 0:01:14]} Be4 {[%emt 0:00:30]} 14. Bf4 {[%emt 0:06:56]} Bc5 {[%emt 0:02:26]} 15. Nc4 {[%emt 0:07:25]} O-O {[%emt 0:04:22]} 16. Bd6 {[%emt 0:00:18]} Rfc8 {[%emt 0:02:14]} 17. Bxc5 {[%emt 0:03:02]} Rxc5 {[%emt 0:00:06]} 18. Nb6 {[%emt 0:00:40]} Re8 {[%emt 0:01:31]} 19. c4 {[%emt 0:04:48]} Rc6 {[%emt 0:05:03]} 20. Nd7 {[%emt 0:00:16]} Nxd7 {[%emt 0:00:37]} 21. Rxd7 {[%emt 0:00:04]} Rcc8 {[%emt 0:00:08]} 22. Rad1 {[%emt 0:04:10]} Kf8 {[%emt 0:03:22]} 23. f3 {[%emt 0:01:47]} Bc6 {[%emt 0:00:18]} 24. R7d2 {[%emt 0:00:05]} Ke7 {[%emt 0:05:58]} 25. Kf2 {[%emt 0:00:04]} Red8 {[%emt 0:01:03]} 26. Rxd8 {[%emt 0:00:14]} Rxd8 {[%emt 0:00:03]} 27. Rxd8 {[%emt 0:00:04]} Kxd8 {[%emt 0:00:04]} 28. Bd3 {[%emt 0:00:43]} Ke7 {[%emt 0:00:53]} 29. b4 {[%emt 0:02:18]} f5 {[%emt 0:00:21]} 30. f4 {[%emt 0:01:04]} Kf6 {[%emt 0:00:40]} 31. g3 {[%emt 0:01:36]} e5 {[%emt 0:03:41]} 32. h4 {[%emt 0:01:53]} h6 {[%emt 0:02:41]} 33. h5 {[%emt 0:03:36]} b6 {[%emt 0:06:13]} 34. a3 {[%emt 0:01:28]} a5 {[%emt 0:12:09]} 35. Ke3 {[%emt 0:02:16]} axb4 {[%emt 0:00:13]} 36. axb4 {[%emt 0:00:01]} Ke6 {[%emt 0:02:15]} 37. Bc2 {[%emt 0:07:37]} Be8 {[%emt 0:02:59]} 38. Bd1 {[%emt 0:00:01]} Kd6 {[%emt 0:00:32]} 39. fxe5+ {[%emt 0:06:53]} Kxe5 {[%emt 0:00:07]} 40. Bf3 {[%emt 0:00:05]} Bf7 {[%emt 0:08:36]} 41. c5 {[%emt 0:30:30]} bxc5 {[%emt 0:30:24]} 42. bxc5 {[%emt 0:00:03]} Be8 {[%emt 0:02:32]} 43. c6 {[%emt 0:01:34]} Kd6 {[%emt 0:00:20]} 44. Kf4 {[%emt 0:00:10]} g6 {[%emt 0:00:13]} 45. Bd1 {[%emt 0:02:25]} Bxc6 {[%emt 0:01:43]} 46. hxg6 {[%emt 0:00:07]} Ke6 {[%emt 0:00:02]} 47. g7 {[%emt 0:01:20]} Kf7 {[%emt 0:00:00] Ke4} 1/2-1/2

[Event "Moscow Open RSSU Cup 2020"]
[Site "Moscow"]
[Date "2020.01.29"]
[Round "5.4"]
[White "Korchmar, Vasiliy"]
[Black "Savchenko, Boris"]
[Result "1/2-1/2"]
[ECO "D31"]
[WhiteElo "2446"]
[BlackElo "2573"]
[Annotator "ChessBase"]
[PlyCount "156"]
[EventDate "2020.01.25"]
[EventType "swiss"]
[EventCountry "RUS"]
[SourceTitle "playchess.com"]
[Source "ChessBase"]
[SourceQuality "1"]
[TimeControl "40/5400+30:1800+30"]

1. d4 {[%emt 0:00:00]} e6 {[%emt 0:07:01]} 2. c4 {[%emt 0:00:00]} d5 {[%emt 0:01:31]} 3. Nc3 {[%emt 0:00:49]} c6 {[%emt 0:03:09]} 4. Nf3 {[%emt 0:00:37]} dxc4 {[%emt 0:00:13]} 5. e3 {[%emt 0:02:31]} b5 {[%emt 0:00:14]} 6. a4 {[%emt 0:00:02]} Bb4 {[%emt 0:00:19]} 7. Bd2 {[%emt 0:00:09]} a5 {[%emt 0:00:23]} 8. axb5 {[%emt 0:00:14]} Bxc3 {[%emt 0:00:08]} 9. Bxc3 {[%emt 0:00:03]} cxb5 {[%emt 0:00:09]} 10. b3 {[%emt 0:00:07]} Bb7 {[%emt 0:00:05]} 11. bxc4 {[%emt 0:00:05]} b4 {[%emt 0:00:06]} 12. Bb2 {[%emt 0:00:05]} Nf6 {[%emt 0:00:10]} 13. Bd3 {[%emt 0:00:13]} O-O {[%emt 0:02:16]} 14. O-O {[%emt 0:00:07]} Nbd7 {[%emt 0:00:20]} 15. Nd2 {[%emt 0:00:07]} Qc7 {[%emt 0:11:38]} 16. f4 {[%emt 0:00:32]} a4 {[%emt 0:00:38]} 17. Rb1 {[%emt 0:00:23]} g6 {[%emt 0:11:14]} 18. e4 {[%emt 0:08:59]} Nh5 {[%emt 0:00:13]} 19. e5 {[%emt 0:05:58]} f5 {[%emt 0:21:59]} 20. Be2 {[%emt 0:17:22]} Ng7 {[%emt 0:04:48]} 21. Bf3 {[%emt 0:05:32]} Nb6 {[%emt 0:04:29]} 22. Bxb7 {[%emt 0:16:49]} Qxb7 {[%emt 0:00:32]} 23. Ba1 {[%emt 0:00:41]} Qe7 {[%emt 0:00:11]} 24. Qf3 {[%emt 0:01:12]} Rfc8 {[%emt 0:07:02]} 25. Kh1 {[%emt 0:02:09]} b3 {[%emt 0:02:13]} 26. Rfc1 {[%emt 0:05:54]} Rab8 {[%emt 0:06:06]} 27. h3 {[%emt 0:08:00]} Qb7 {[%emt 0:02:33]} 28. Qe3 {[%emt 0:03:31]} Qa6 {[%emt 0:01:48]} 29. d5 {[%emt 0:00:39]} Nxc4 {[%emt 0:09:16]} 30. Qd3 {[%emt 0:00:46]} Nh5 {[%emt 0:02:08]} 31. d6 {[%emt 0:11:17]} Nxf4 {[%emt 0:00:12]} 32. Qf1 {[%emt 0:00:00]} Nxg2 {[%emt 0:00:11]} 33. Rxc4 {[%emt 0:01:02]} Ne3 {[%emt 0:00:18]} 34. Rxc8+ {[%emt 0:00:24]} Qxc8 {[%emt 0:00:04]} 35. Qf3 {[%emt 0:00:21]} Qc5 {[%emt 0:00:43]} 36. Bb2 {[%emt 0:00:51]} Nc2 {[%emt 0:01:57]} 37. Rd1 {[%emt 0:01:17]} Qb5 {[%emt 0:00:51]} 38. Nb1 {[%emt 0:01:02]} Kf7 {[%emt 0:01:12]} 39. Qc3 {[%emt 0:02:46]} Qb7+ {[%emt 0:00:24]} 40. Kh2 {[%emt 0:00:01]} Rc8 {[%emt 0:00:15]} 41. d7 {[%emt 0:30:42]} Rd8 {[%emt 0:30:08]} 42. Qd2 {[%emt 0:04:09]} Qf3 {[%emt 0:00:32]} 43. Qg5 {[%emt 0:02:16]} Qe2+ {[%emt 0:01:10]} 44. Kg3 {[%emt 0:00:05]} Qe3+ {[%emt 0:00:14]} 45. Qxe3 {[%emt 0:00:04]} Nxe3 {[%emt 0:00:03]} 46. Rd4 {[%emt 0:00:24]} g5 {[%emt 0:00:31]} 47. Na3 {[%emt 0:01:41]} f4+ {[%emt 0:00:58]} 48. Kf3 {[%emt 0:00:16]} Nf5 {[%emt 0:00:22]} 49. Rd3 {[%emt 0:01:10]} Ke7 {[%emt 0:00:11]} 50. Nc4 {[%emt 0:00:33]} Rxd7 {[%emt 0:00:05]} 51. Ba3+ {[%emt 0:00:59]} Kd8 {[%emt 0:00:06]} 52. Nd6 {[%emt 0:00:08]} Ne3 {[%emt 0:01:09]} 53. Rd4 {[%emt 0:00:47]} Nc2 {[%emt 0:01:29]} 54. Rxa4 {[%emt 0:00:01]} Rc7 {[%emt 0:00:12]} 55. Bb2 {[%emt 0:00:50]} Ne1+ {[%emt 0:00:47]} 56. Kg4 {[%emt 0:00:01]} Nd3 {[%emt 0:00:29]} 57. Bd4 {[%emt 0:00:21]} Kd7 {[%emt 0:00:33]} 58. Kxg5 {[%emt 0:00:47]} f3 {[%emt 0:01:02]} 59. Ra8 {[%emt 0:01:04]} Kc6 {[%emt 0:00:00]} 60. Rb8 {[%emt 0:00:27]} Kd5 {[%emt 0:00:15]} 61. Rxb3 {[%emt 0:00:31]} Kxd4 {[%emt 0:00:39]} 62. Nb5+ {[%emt 0:00:01]} Ke3 {[%emt 0:00:33]} 63. Nxc7 {[%emt 0:00:23]} f2 {[%emt 0:00:05]} 64. Rb1 {[%emt 0:00:06]} Ne1 {[%emt 0:00:08]} 65. Rb3+ {[%emt 0:00:06]} Nd3 {[%emt 0:01:08]} 66. Rb1 {[%emt 0:00:01]} h6+ {[%emt 0:00:37]} 67. Kg4 {[%emt 0:01:09]} Ne1 {[%emt 0:00:08]} 68. Rb3+ {[%emt 0:00:03]} Nd3 {[%emt 0:00:12]} 69. Rb1 {[%emt 0:00:01]} h5+ {[%emt 0:01:05]} 70. Kg3 {[%emt 0:00:34]} h4+ {[%emt 0:00:13]} 71. Kg4 {[%emt 0:00:58]} Ne1 {[%emt 0:00:11]} 72. Rb3+ {[%emt 0:00:01]} Nd3 {[%emt 0:01:00]} 73. Rb1 {[%emt 0:00:01]} Ne1 {[%emt 0:00:37]} 74. Rb3+ {[%emt 0:00:01]} Kd2 {[%emt 0:00:25]} 75. Rb2+ {[%emt 0:00:23]} Nc2 {[%emt 0:00:06]} 76. Rb1 {[%emt 0:00:01]} Ne1 {[%emt 0:01:01]} 77. Rb2+ {[%emt 0:00:01]} Nc2 {[%emt 0:00:06]} 78. Rb1 {[%emt 0:00:01]} Ne1 {[%emt 0:01:21]} 1/2-1/2